bitfinex-derivatives/quotes_BNBF0:USTF0_20230830
["timestamp","ask_amount","ask_price","bid_price","bid_amount"]
[1693407355670,0.07175519,222.89,222.5,0.825271]
[1693407355875,0.07175519,222.89,222.48,0.07293972]
[1693407355876,0.07175519,222.89,222.51,0.825271]
[1693407356075,0.07175519,222.89,222.52,0.825271]
[1693407356267,0.07175519,222.89,222.53,0.825271]
[1693407356472,0.07175519,222.89,222.54,0.825271]
[1693407356673,0.07175519,222.89,222.55,0.825271]
[1693407356876,0.07175519,222.89,222.56,0.825271]
[1693407357073,0.07175519,222.89,222.57,0.825271]
[1693407357271,0.07175519,222.89,222.49,0.825271]
[1693407357472,0.07175519,222.89,222.5,0.825271]
[1693407357674,0.07175519,222.9,222.49,0.825271]
[1693407357875,0.07175519,222.9,222.5,0.825271]
[1693407358069,0.07175519,222.9,222.49,0.825271]
[1693407358271,0.07175519,222.9,222.5,0.825271]
[1693407358471,0.07175519,222.9,222.51,0.825271]
[1693407358675,0.07175519,222.9,222.48,0.825271]
[1693407359377,0.07175519,222.9,222.48,0.89821072]
[1693407359678,0.07175519,222.92,222.49,0.89821072]
[1693407359879,0.07175519,222.92,222.5,0.825271]
[1693407360770,0.07175519,222.92,222.51,0.825271]
[1693407361078,0.07175519,222.92,222.52,0.825271]
[1693407361278,0.07175519,222.92,222.49,0.825271]
[1693407361476,0.07175519,222.92,222.5,0.825271]
[1693407361778,0.07175519,222.92,222.51,0.825271]
[1693407361981,0.07175519,222.92,222.49,0.825271]
[1693407362278,0.07175519,222.91,222.5,0.825271]
[1693407362473,0.07175519,222.91,222.48,0.825271]
[1693407362676,0.07175519,222.91,222.49,0.825271]
[1693407362871,0.07175519,222.91,222.48,0.825271]
[1693407363077,0.07175519,222.91,222.49,0.825271]
[1693407363272,0.07175519,222.91,222.47,0.825271]
[1693407363479,0.07175519,222.91,222.48,0.825271]
[1693407363681,0.07175519,222.91,222.47,0.89821072]
[1693407363980,0.07175519,222.91,222.48,0.825271]
[1693407365080,0.07175519,222.87,222.47,0.825271]
[1693407365280,0.88334714,222.86,222.48,0.825271]
[1693407365481,0.07175519,222.85,222.43,0.825271]
[1693407365775,0.07175519,222.84,222.44,0.825271]
[1693407365980,0.07175519,222.84,222.41,0.825271]
[1693407366180,0.07175519,222.84,222.4,0.07293972]
[1693407366181,0.07175519,222.84,222.42,0.825271]
[1693407366374,0.07175519,222.84,222.4,0.89821072]
[1693407366574,0.07175519,222.84,222.41,0.825271]
[1693407368678,0.07175519,222.83,222.41,0.825271]
[1693407368879,0.07175519,222.83,222.42,0.825271]
[1693407369081,0.07175519,222.83,222.4,0.89821072]
[1693407369275,0.07175519,222.83,222.41,0.825271]
[1693407370680,0.07175519,222.82,222.41,0.825271]
[1693407372177,0.07175519,222.82,222.39,0.07293972]
[1693407372178,0.07175519,222.82,222.42,0.825271]
[1693407372385,0.07175519,222.82,222.43,0.825271]
[1693407372582,0.07175519,222.82,222.44,0.825271]
[1693407372781,0.07175519,222.82,222.45,0.825271]
[1693407372980,0.07175519,222.82,222.4,0.825271]
[1693407373181,0.07175519,222.82,222.41,0.825271]
[1693407373379,0.07175519,222.82,222.42,0.825271]
[1693407373584,0.07175519,222.82,222.43,0.825271]
[1693407373881,0.07175519,222.82,222.44,0.825271]
[1693407374083,0.07175519,222.82,222.45,0.825271]
[1693407374285,0.07175519,222.82,222.46,0.825271]
[1693407374480,0.07175519,222.82,222.47,0.825271]
[1693407374685,0.07175519,222.82,222.4,0.825271]
[1693407374886,0.07175519,222.82,222.4,0.89821072]
[1693407375087,0.07175519,222.82,222.41,0.825271]
[1693407379187,0.07175519,222.81,222.41,0.825271]
[1693407379689,0.14351039,222.84,222.33,0.14587944]
[1693407379690,0.07175519,222.82,222.42,0.825271]
[1693407379885,0.07175519,222.82,222.43,0.825271]
[1693407380093,0.07175519,222.81,222.41,0.825271]
[1693407380290,0.07175519,222.81,222.42,0.825271]
[1693407380590,0.07175519,222.82,222.43,0.825271]
[1693407380791,0.07175519,222.82,222.4,0.825271]
[1693407381092,0.07175519,222.82,222.41,0.825271]
[1693407381290,0.07175519,222.82,222.4,0.825271]
[1693407381490,0.07175519,222.82,222.41,0.825271]
[1693407381690,0.07175519,222.81,222.4,0.825271]
[1693407381890,0.07175519,222.81,222.41,0.825271]
[1693407382188,0.07175519,222.81,222.42,0.825271]
[1693407382390,0.07175519,222.81,222.43,0.825271]
[1693407382590,0.07175519,222.81,222.44,0.825271]
[1693407382786,0.07175519,222.81,222.45,0.825271]
[1693407382986,0.07175519,222.82,222.46,0.825271]
[1693407383292,0.07175519,222.82,222.47,0.825271]
[1693407383491,0.07175519,222.82,222.4,0.825271]
[1693407383691,0.07175519,222.82,222.48,0.825271]
[1693407383890,0.07175519,222.82,222.49,0.825271]
[1693407384087,0.07175519,222.82,222.4,0.825271]
[1693407384289,0.07175519,222.82,222.41,0.825271]
[1693407384489,0.07175519,222.82,222.4,0.825271]
[1693407384691,0.07175519,222.82,222.41,0.825271]
[1693407384885,0.07175519,222.82,222.4,0.825271]
[1693407385089,0.07175519,222.82,222.41,0.825271]
[1693407385292,0.07175519,222.82,222.42,0.825271]
[1693407385494,0.07175519,222.82,222.43,0.825271]
[1693407385692,0.07175519,222.82,222.4,0.825271]
[1693407385888,0.07175519,222.82,222.41,0.825271]
[1693407386192,0.07175519,222.82,222.39,0.07293972]
[1693407386193,0.07175519,222.83,222.42,0.825271]
[1693407386493,0.07175519,222.82,222.43,0.825271]
[1693407386788,0.07175519,222.82,222.41,0.825271]
[1693407386993,0.07175519,222.82,222.42,0.825271]
[1693407387291,0.07175519,222.82,222.43,0.825271]
[1693407387492,0.07175519,222.82,222.4,0.825271]
[1693407387692,0.07175519,222.82,222.41,0.825271]
[1693407387892,0.07175519,222.82,222.4,0.825271]
[1693407389194,0.07175519,222.81,222.4,0.825271]
[1693407389595,0.07175519,222.81,222.4,0.89821072]
[1693407389795,0.07175519,222.81,222.41,0.825271]
[1693407391299,0.07175519,222.81,222.41,0.89821072]
[1693407391498,0.07175519,222.82,222.42,0.825271]
[1693407392198,0.07175519,222.81,222.42,0.825271]
[1693407392591,0.07175519,222.81,222.42,0.89821072]
[1693407392794,0.07175519,222.81,222.43,0.825271]
[1693407393599,0.07175519,222.8,222.43,0.825271]
[1693407394494,0.07175519,222.79,222.43,0.825271]
[1693407394693,2.39183987,222.93,222.44,0.07293972]
[1693407394694,0.07175519,222.78,222.44,0.07293972]
[1693407394894,0.07175519,222.78,222.45,0.825271]
[1693407396501,0.07175519,222.77,222.45,0.825271]
[1693407398000,0.07175519,222.76,222.45,0.89821072]
[1693407398201,0.07175519,222.76,222.46,0.825271]
[1693407399405,0.07175519,222.72,222.49,0.07293972]
[1693407399606,0.07175519,222.72,222.5,0.825271]
[1693407399806,0.07175519,222.72,222.48,0.07293972]
[1693407400103,0.07175519,222.66,222.42,0.07293972]
[1693407400406,0.07175519,222.65,222.43,0.82549652]
[1693407400806,0.07175519,222.65,222.35,0.14587944]
[1693407400807,0.07175519,222.65,222.42,0.89843624]
[1693407401000,0.07175519,222.65,222.43,0.82549713]
[1693407401404,0.47836797,222.7,222.43,0.82549713]
[1693407401405,0.07175519,222.68,222.43,0.82549713]
[1693407401605,0.07175519,222.68,222.4,0.82549713]
[1693407401905,0.07175519,222.68,222.41,0.82550465]
[1693407402207,0.07175519,222.68,222.42,0.82550465]
[1693407402406,0.07175519,222.68,222.38,0.07293972]
[1693407402599,0.07175519,222.68,222.39,0.82550736]
[1693407403007,2.39183987,222.82,222.39,0.82550736]
[1693407403008,0.07175519,222.72,222.43,0.07293972]
[1693407403209,0.14351039,222.74,222.45,0.07293972]
[1693407403210,0.07175519,222.74,222.45,0.07293972]
[1693407403403,0.07175519,222.74,222.46,0.82550736]
[1693407407411,0.07175519,222.75,222.46,0.89844708]
[1693407407607,0.07175519,222.75,222.47,0.82550736]
[1693407407805,0.07175519,222.74,222.47,0.82550736]
[1693407408010,0.07175519,222.74,222.48,0.82550736]
[1693407408214,0.07175519,222.74,222.46,0.82550736]
[1693407409012,0.95673594,222.82,222.46,0.89844708]
[1693407409013,0.07175519,222.75,222.46,0.89844708]
[1693407409214,0.07175519,222.75,222.47,0.82550736]
[1693407410312,0.07175519,222.74,222.47,0.82550736]
[1693407410514,0.07175519,222.74,222.46,0.82550736]
[1693407410716,0.07175519,222.74,222.47,0.82550736]
[1693407410914,0.07175519,222.74,222.46,0.82550736]
[1693407411114,0.07175519,222.74,222.47,0.82550736]
[1693407411314,0.07175519,222.74,222.46,0.82550736]
[1693407411517,0.07175519,222.74,222.47,0.82550736]
[1693407411716,0.07175519,222.74,222.46,0.82550736]
[1693407412016,0.07175519,222.74,222.47,0.82550736]
[1693407412210,0.07175519,222.74,222.46,0.82550736]
[1693407412815,0.07175519,222.75,222.46,0.89844708]
[1693407413015,0.07175519,222.75,222.47,0.82550736]
[1693407413421,0.07175519,222.76,222.47,0.89844708]
[1693407413622,0.07175519,222.76,222.48,0.82550736]
[1693407413820,0.07175519,222.75,222.48,0.82550736]
[1693407414222,0.07175519,222.76,222.48,0.82550736]
[1693407416426,0.07175519,222.77,222.48,0.89844708]
[1693407416625,0.07175519,222.77,222.49,0.82550736]
[1693407418525,0.07175519,222.78,222.49,0.82550736]
[1693407419128,0.07175519,222.78,222.49,0.89844708]
[1693407419325,0.07175519,222.78,222.5,0.82550736]
[1693407419525,0.07175519,222.78,222.49,0.82550736]
[1693407419725,0.07175519,222.78,222.5,0.82550736]
[1693407420526,0.07175519,222.77,222.51,0.82550736]
[1693407420726,0.07175519,222.77,222.52,0.82550736]
[1693407420924,0.07175519,222.77,222.48,0.82550736]
[1693407421127,0.07175519,222.77,222.49,0.82518793]
[1693407421328,0.07175519,222.77,222.48,0.82518793]
[1693407421528,0.07175519,222.78,222.48,0.89812765]
[1693407421730,0.07175519,222.82,222.52,0.07293972]
[1693407421923,0.07175519,222.83,222.53,0.89812765]
[1693407422228,0.07175519,222.85,222.54,0.82518793]
[1693407422627,0.07175519,222.85,222.55,0.82518793]
[1693407422828,0.07175519,222.85,222.53,0.82518793]
[1693407423028,0.07175519,222.85,222.56,0.82518793]
[1693407423228,0.07175519,222.85,222.57,0.82518793]
[1693407423527,0.07175519,222.86,222.52,0.82518793]
[1693407423729,0.07175519,222.86,222.53,0.82518793]
[1693407423929,0.07175519,222.86,222.51,0.82518793]
[1693407424332,0.07175519,222.87,222.51,0.82518793]
[1693407424631,0.07175519,222.88,222.51,0.82518793]
[1693407425229,0.07175519,222.88,222.5,0.82518793]
[1693407425631,0.07175519,222.88,222.5,0.89812765]
[1693407425829,0.07175519,222.88,222.51,0.82518793]
[1693407426231,0.07175519,222.88,222.5,0.82518793]
[1693407426435,0.07175519,222.88,222.51,0.82518793]
[1693407426632,0.07175519,222.89,222.52,0.82518793]
[1693407426934,0.07175519,222.89,222.53,0.82518793]
[1693407427134,0.07175519,222.89,222.5,0.82518793]
[1693407427435,0.07175519,222.89,222.51,0.82518793]
[1693407427632,0.07175519,222.89,222.5,0.82518793]
[1693407427833,0.14351039,222.92,222.5,0.82518793]
[1693407427834,0.07175519,222.9,222.5,0.82518793]
[1693407428133,0.07175519,222.9,222.51,0.82518793]
[1693407428333,0.07175519,222.9,222.49,0.82518793]
[1693407428533,0.07175519,222.9,222.5,0.82518793]
[1693407428733,0.07175519,222.9,222.49,0.82518793]
[1693407429534,0.07175519,222.91,222.49,0.82518793]
[1693407430438,0.07175519,222.92,222.49,0.82518793]
[1693407430629,0.07175519,222.92,222.5,0.82518793]
[1693407430829,0.07175519,222.92,222.48,0.82518793]
[1693407431129,0.07175519,222.92,222.49,0.82518793]
[1693407431331,0.07175519,222.97,222.52,0.07293972]
[1693407431534,0.07175519,222.97,222.53,0.82518793]
[1693407432029,0.07175519,222.98,222.53,0.89812765]
[1693407432233,0.07175519,222.98,222.54,0.82518793]
[1693407432529,0.07175519,223.0,222.54,0.82518793]
[1693407432736,0.07175519,223.0,222.52,0.82518793]
[1693407432928,0.07175519,223.0,222.53,0.82518793]
[1693407433131,0.88474341,222.99,222.52,0.82518793]
[1693407433332,0.88474341,222.98,222.53,0.82518793]
[1693407433636,0.07175519,222.99,222.54,0.82518793]
[1693407433837,0.07175519,223.0,222.5,0.82518793]
[1693407434037,0.81296377,222.99,222.51,0.82518793]
[1693407434235,0.81296377,222.99,222.52,0.82518793]
[1693407434435,0.81296377,222.99,222.5,0.82518793]
[1693407434636,0.81296377,222.99,222.51,0.82518793]
[1693407434836,0.81296377,222.99,222.5,0.82518793]
[1693407435838,0.81296377,223.0,222.5,0.82518793]
[1693407436237,0.88471896,223.0,222.49,0.82518793]
[1693407436436,0.81296377,222.99,222.5,0.82518793]
[1693407437434,0.07175519,223.0,222.5,0.82518793]
[1693407437639,0.81364199,222.99,222.5,0.82518793]
[1693407437839,0.81364199,223.0,222.5,0.82518793]
[1693407438040,0.07175519,223.01,222.5,0.82518793]
[1693407438243,0.81358206,222.99,222.5,0.89812765]
[1693407438442,0.07175519,222.96,222.51,0.82518793]
[1693407438736,0.81358206,222.95,222.52,0.82518793]
[1693407438944,0.88533725,222.95,222.46,0.82518793]
[1693407439143,0.81358206,222.94,222.47,0.82518793]
[1693407439542,0.81358206,222.94,222.48,0.82518793]
[1693407439841,0.81358206,222.94,222.49,0.82518793]
[1693407440037,0.81358206,222.94,222.45,0.82518793]
[1693407440241,0.81358206,222.94,222.46,0.82518793]
[1693407440543,0.88533725,222.94,222.47,0.82518793]
[1693407440840,0.81358206,222.93,222.48,0.82518793]
[1693407441039,0.81358206,222.93,222.45,0.82518793]
[1693407441240,0.88533725,222.93,222.46,0.82518793]
[1693407441442,0.81358206,222.92,222.44,0.82518793]
[1693407441742,0.07175519,222.94,222.45,0.82518793]
[1693407441935,0.88503482,222.93,222.44,0.82518793]
[1693407442138,0.81327963,222.92,222.44,0.82518793]
[1693407442541,0.81327963,222.92,222.44,0.89812765]
[1693407442742,0.81327963,222.92,222.45,0.82518793]
[1693407443543,0.88503482,222.92,222.45,0.82518793]
[1693407443842,0.81324534,222.91,222.45,0.82518793]
[1693407444044,0.81324534,222.91,222.44,0.82518793]
[1693407444243,0.81324534,222.91,222.43,0.07293972]
[1693407444244,0.88500053,222.91,222.45,0.82518793]
[1693407444539,0.07175519,222.91,222.46,0.82518793]
[1693407444744,0.88496168,222.9,222.45,0.82518793]
[1693407444941,0.07175519,222.9,222.46,0.82518793]
[1693407445143,0.07175519,222.9,222.44,0.82518793]
[1693407445343,0.07175519,222.85,222.47,0.82518793]
[1693407445544,0.81304587,222.84,222.39,0.82518793]
[1693407445739,0.81304587,222.84,222.38,0.82518793]
[1693407445939,0.88480106,222.84,222.38,0.82518793]
[1693407446138,0.07175519,222.84,222.38,0.82518793]
[1693407446339,0.07175519,222.84,222.38,0.89812765]
[1693407446540,0.07175519,222.84,222.39,0.82518793]
[1693407446939,0.07175519,222.85,222.38,0.89812765]
[1693407447244,0.07175519,222.84,222.39,0.82518793]
[1693407447444,0.07175519,222.84,222.38,0.82518793]
[1693407447646,0.07175519,222.84,222.39,0.82518793]
[1693407448945,0.07175519,222.84,222.38,0.82518793]
[1693407449146,0.07175519,222.84,222.39,0.82518793]
[1693407449546,0.07175519,222.84,222.4,0.82518793]
[1693407449749,0.07175519,222.84,222.38,0.82518793]
[1693407452250,0.07175519,222.85,222.38,0.89812765]
[1693407452442,0.07175519,222.85,222.39,0.82518793]
[1693407452949,0.07175519,222.85,222.4,0.82518793]
[1693407453149,0.07175519,222.85,222.38,0.82518793]
[1693407453846,0.88485649,222.84,222.38,0.82518793]
[1693407454051,0.07175519,222.84,222.38,0.82518793]
[1693407454848,0.07175519,222.84,222.37,0.82518793]
[1693407455049,0.88487319,222.83,222.39,0.82518793]
[1693407455248,0.88487319,222.83,222.4,0.82518793]
[1693407455249,0.07175519,222.83,222.4,0.82518793]
[1693407455447,0.07175519,222.83,222.36,0.82518793]
[1693407455448,0.81307401,222.82,222.36,0.82518793]
[1693407455650,0.07175519,222.83,222.37,0.82518793]
[1693407455851,0.81305757,222.82,222.36,0.82518793]
[1693407456048,0.81305757,222.82,222.37,0.82518793]
[1693407456244,0.07175519,222.83,222.38,0.82518793]
[1693407456447,0.88474785,222.82,222.36,0.82518793]
[1693407456751,0.07175519,222.79,222.37,0.82518793]
[1693407456946,0.81299266,222.78,222.29,0.82518793]
[1693407457151,0.81299266,222.78,222.3,0.82518793]
[1693407457346,0.81299266,222.78,222.28,0.82518793]
[1693407457651,0.81299266,222.78,222.29,0.82518793]
[1693407457849,0.81299266,222.78,222.28,0.82518793]
[1693407458247,0.81299266,222.79,222.28,0.82518793]
[1693407458450,0.81299266,222.78,222.28,0.82518793]
[1693407458852,0.88474785,222.8,222.27,0.82518793]
[1693407459050,0.81299266,222.79,222.26,0.82518793]
[1693407459253,0.81299266,222.79,222.27,0.82518793]
[1693407459452,0.81299266,222.79,222.18,0.14587944]
[1693407459453,0.81299266,222.79,222.25,0.89812765]
[1693407459653,0.81299266,222.79,222.26,0.82518793]
[1693407459853,0.81299266,222.78,222.27,0.82518793]
[1693407460052,0.81299266,222.8,222.25,0.82518793]
[1693407460249,0.81299266,222.79,222.26,0.82518793]
[1693407460455,0.81299266,222.8,222.26,0.82518793]
[1693407460757,0.81299266,222.79,222.26,0.82518793]
[1693407460950,0.81299266,222.8,222.24,0.82518793]
[1693407461151,0.81299266,222.79,222.25,0.82518793]
[1693407461353,0.81299266,222.8,222.24,0.82518793]
[1693407461754,0.81299266,222.79,222.25,0.82518793]
[1693407461949,0.81299266,222.81,222.22,0.82518793]
[1693407462153,0.81299266,222.8,222.23,0.82518793]
[1693407462355,0.81299266,222.83,222.23,0.89812765]
[1693407462551,0.81299266,222.82,222.24,0.82518793]
[1693407462751,0.81299266,222.81,222.25,0.82518793]
[1693407462955,0.81299266,222.84,222.23,0.82518793]
[1693407463158,0.81299266,222.83,222.24,0.82518793]
[1693407463351,0.81299266,222.83,222.23,0.82518793]
[1693407463554,0.81299266,222.83,222.24,0.82518793]
[1693407463752,0.81299266,222.83,222.22,0.89812765]
[1693407463954,0.81299266,222.83,222.23,0.82518793]
[1693407464257,0.81299266,222.83,222.24,0.82518793]
[1693407464451,0.81299266,222.83,222.21,0.07293972]
[1693407464452,0.81299266,222.83,222.22,0.82518793]
[1693407464658,0.88474785,222.84,222.23,0.82518793]
[1693407464861,0.81299266,222.83,222.21,0.82518793]
[1693407465060,0.88474785,222.83,222.21,0.82518793]
[1693407465261,0.81299266,222.82,222.2,0.82518793]
[1693407465455,0.81299266,222.82,222.21,0.82518793]
[1693407465657,0.81299266,222.82,222.2,0.82518793]
[1693407465860,0.81299266,222.83,222.21,0.82518793]
[1693407466160,0.81299266,222.82,222.22,0.82518793]
[1693407466355,0.81299266,222.82,222.2,0.82518793]
[1693407466557,0.81299266,222.81,222.2,0.82518793]
[1693407466761,0.81299266,222.83,222.2,0.82518793]
[1693407466965,0.81299266,222.82,222.2,0.82518793]
[1693407467159,0.81299266,222.81,222.2,0.82518793]
[1693407467356,0.81299266,222.8,222.2,0.89812765]
[1693407467561,0.81299266,222.79,222.21,0.82518793]
[1693407467762,0.81299266,222.83,222.21,0.82518793]
[1693407468063,0.81299266,222.82,222.21,0.82518793]
[1693407468263,0.81299266,222.83,222.21,0.82518793]
[1693407468459,0.81299266,222.82,222.21,0.89812765]
[1693407468664,0.88474785,222.83,222.22,0.82518793]
[1693407468966,0.81299266,222.82,222.22,0.82518793]
[1693407470066,0.81299266,222.82,222.22,0.89812765]
[1693407470266,0.81299266,222.83,222.23,0.82518793]
[1693407470467,0.81299266,222.82,222.23,0.82518793]
[1693407470761,0.81299266,222.81,222.24,0.07293972]
[1693407470960,0.88474785,222.82,222.25,0.82518793]
[1693407471166,0.81299266,222.81,222.25,0.82518793]
[1693407471565,0.07175519,222.8,222.26,0.07293972]
[1693407471766,0.81299266,222.79,222.27,0.82518793]
[1693407472764,0.88474785,222.8,222.27,0.82518793]
[1693407472965,0.81299266,222.79,222.26,0.82518793]
[1693407473166,0.81299266,222.79,222.27,0.82518793]
[1693407473362,0.81299266,222.79,222.28,0.82518793]
[1693407473567,0.88474785,222.79,222.29,0.82518793]
[1693407473763,0.88474785,222.79,222.3,0.82518793]
[1693407473764,0.81299266,222.78,222.3,0.82518793]
[1693407473968,0.81299266,222.78,222.31,0.82518793]
[1693407474269,0.81299266,222.78,222.28,0.82518793]
[1693407474471,0.81299266,222.78,222.29,0.82518793]
[1693407475066,0.47836797,222.84,222.29,0.82518793]
[1693407475067,0.07175519,222.82,222.31,0.07293972]
[1693407475271,0.07175519,222.83,222.32,0.89812765]
[1693407475472,0.07175519,222.84,222.33,0.89812765]
[1693407475675,0.8130472,222.83,222.35,0.07293972]
[1693407475875,0.07175519,222.84,222.36,0.82518793]
[1693407476574,0.07175519,222.84,222.36,0.89812765]
[1693407476774,0.07175519,222.84,222.37,0.82518793]
[1693407477579,0.07175519,222.82,222.37,0.89812765]
[1693407477779,0.07175519,222.82,222.38,0.82518793]
[1693407478279,0.07175519,222.81,222.38,0.82518793]
[1693407478470,0.07175519,222.81,222.39,0.82518793]
[1693407478778,0.07175519,222.81,222.4,0.82518793]
[1693407478979,0.07175519,222.81,222.37,0.82518793]
[1693407479182,0.07175519,222.81,222.38,0.82518793]
[1693407479379,0.07175519,222.81,222.37,0.82518793]
[1693407479679,0.07175519,222.79,222.37,0.89812765]
[1693407479880,0.07175519,222.79,222.38,0.82518793]
[1693407480878,0.07175519,222.78,222.38,0.82518793]
[1693407481074,0.07175519,222.73,222.37,0.82518793]
[1693407481274,0.07175519,222.73,222.38,0.82518793]
[1693407481479,0.07175519,222.73,222.39,0.82518793]
[1693407481679,0.07175519,222.73,222.4,0.82518793]
[1693407481880,0.07175519,222.73,222.33,0.82518793]
[1693407482081,0.07175519,222.73,222.34,0.82518793]
[1693407482281,0.07175519,222.73,222.33,0.82518793]
[1693407482476,0.07175519,222.73,222.35,0.82518793]
[1693407482676,0.07175519,222.73,222.33,0.82518793]
[1693407482876,0.07175519,222.73,222.34,0.82518793]
[1693407483077,0.07175519,222.73,222.33,0.82518793]
[1693407483276,0.07175519,222.73,222.34,0.82518793]
[1693407483480,0.07175519,222.73,222.35,0.82518793]
[1693407483681,0.07175519,222.73,222.33,0.82518793]
[1693407483882,0.07175519,222.73,222.34,0.82518793]
[1693407484084,0.07175519,222.73,222.33,0.89812765]
[1693407484385,0.07175519,222.73,222.34,0.82518793]
[1693407484581,0.07175519,222.72,222.34,0.82518793]
[1693407485483,0.07175519,222.72,222.35,0.82518793]
[1693407485685,0.07175519,222.72,222.33,0.89812765]
[1693407485985,0.07175519,222.72,222.34,0.82518793]
[1693407486485,0.07175519,222.71,222.34,0.82518793]
[1693407486886,2.39183987,222.85,222.34,0.82518793]
[1693407487188,0.07230173,222.71,222.35,0.82518793]
[1693407487587,0.07230173,222.7,222.35,0.82518793]
[1693407489386,0.07230173,222.7,222.35,0.89857271]
[1693407489688,0.07230173,222.7,222.36,0.07338478]
[1693407489887,0.07230173,222.69,222.37,0.82552759]
[1693407490285,0.07230173,222.7,222.37,0.82552759]
[1693407492389,0.07230173,222.69,222.37,0.82552759]
[1693407493490,0.07230173,222.69,222.38,0.82552759]
[1693407493689,0.07230173,222.69,222.36,0.82552759]
[1693407493889,0.07230173,222.68,222.36,0.82552759]
[1693407494284,0.07230173,222.69,222.36,0.82552759]
[1693407496790,0.07230173,222.68,222.36,0.82552759]
[1693407498292,0.07230173,222.69,222.36,0.82552759]
[1693407498489,0.07230173,222.68,222.36,0.82552759]
[1693407499787,0.07230173,222.68,222.37,0.82552759]
[1693407499991,0.07230173,222.69,222.38,0.82552759]
[1693407500192,0.07230173,222.69,222.39,0.82552759]
[1693407500492,0.07230173,222.69,222.4,0.82552759]
[1693407500692,0.07230173,222.69,222.41,0.82552759]
[1693407500894,0.07230173,222.69,222.42,0.82552759]
[1693407501093,0.07230173,222.69,222.36,0.82552759]
[1693407503795,0.07230173,222.68,222.36,0.82552759]
[1693407503992,0.07230173,222.68,222.34,0.07338478]
[1693407503993,0.07230173,222.68,222.35,0.82552759]
[1693407504995,0.07230173,222.67,222.35,0.82552759]
[1693407505296,0.07230173,222.67,222.36,0.82552759]
[1693407505592,0.07230173,222.67,222.37,0.82552759]
[1693407505794,0.07230173,222.67,222.33,0.07338478]
[1693407505795,0.07230173,222.68,222.34,0.82552759]
[1693407505991,0.07230173,222.68,222.35,0.82552759]
[1693407506197,0.07230173,222.68,222.34,0.82552759]
[1693407506390,0.07230173,222.68,222.35,0.82552759]
[1693407506594,0.07230173,222.68,222.34,0.82552759]
[1693407506795,0.07230173,222.68,222.35,0.82552759]
[1693407506995,0.07230173,222.68,222.34,0.82552759]
[1693407507299,0.07230173,222.68,222.35,0.82552759]
[1693407507503,0.07230173,222.68,222.34,0.82552759]
[1693407507696,0.07230173,222.68,222.34,0.89891237]
[1693407507894,0.07230173,222.69,222.35,0.82552759]
[1693407510100,0.07230173,222.69,222.35,0.89891237]
[1693407510399,0.07230173,222.7,222.36,0.89891237]
[1693407510601,0.07230173,222.71,222.37,0.82552759]
[1693407511101,0.07230173,222.7,222.37,0.82552759]
[1693407511302,0.07230173,222.7,222.36,0.82552759]
[1693407511501,0.07230173,222.69,222.37,0.89891237]
[1693407511701,0.07230173,222.69,222.38,0.82552759]
[1693407512103,0.07230173,222.69,222.3,0.14676957]
[1693407512104,0.07230173,222.69,222.37,0.89891237]
[1693407512401,0.07230173,222.69,222.38,0.82552759]
[1693407512603,0.07230173,222.67,222.39,0.07338478]
[1693407512798,0.07230173,222.72,222.43,0.07338478]
[1693407513001,0.07230173,222.72,222.44,0.89891237]
[1693407513202,0.07230173,222.72,222.45,0.82552759]
[1693407513798,0.07230173,222.73,222.45,0.82552759]
[1693407514003,0.07230173,222.73,222.46,0.82552759]
[1693407514200,0.07230173,222.73,222.47,0.82552759]
[1693407514398,0.07230173,222.73,222.48,0.82552759]
[1693407514601,0.07230173,222.73,222.19,0.97846382]
[1693407514602,0.07230173,222.72,222.44,0.07338478]
[1693407514801,0.07230173,222.72,222.45,0.82526361]
[1693407514999,0.07230173,222.73,222.45,0.82526361]
[1693407515207,0.07230173,222.73,222.46,0.82526361]
[1693407515403,0.07230173,222.74,222.47,0.82526361]
[1693407515599,0.07230173,222.74,222.48,0.82526361]
[1693407515804,0.07230173,222.74,222.44,0.82526361]
[1693407516004,0.07230173,222.74,222.45,0.82526361]
[1693407516203,0.07230173,222.74,222.44,0.82526361]
[1693407516403,0.07230173,222.74,222.45,0.82526361]
[1693407516599,0.07230173,222.74,222.44,0.82526361]
[1693407516905,0.07230173,222.75,222.45,0.82526361]
[1693407517205,0.07230173,222.74,222.46,0.82526361]
[1693407517399,0.07230173,222.74,222.43,0.82526361]
[1693407517598,0.07230173,222.74,222.44,0.82526361]
[1693407517905,0.07230173,222.74,222.45,0.82526361]
[1693407518106,0.07230173,222.74,222.42,0.82526361]
[1693407518305,0.07230173,222.74,222.43,0.82526361]
[1693407518504,0.07230173,222.74,222.42,0.82526361]
[1693407518702,0.07230173,222.74,222.43,0.82526361]
[1693407518900,0.07230173,222.74,222.42,0.82526361]
[1693407519105,0.07230173,222.75,222.43,0.82526361]
[1693407519304,0.07230173,222.75,222.42,0.82526361]
[1693407519600,0.07230173,222.75,222.43,0.82526361]
[1693407519804,0.07230173,222.75,222.42,0.82526361]
[1693407519997,0.07230173,222.75,222.43,0.82526361]
[1693407520202,0.07230173,222.75,222.42,0.82526361]
[1693407520503,0.07230173,222.76,222.43,0.82526361]
[1693407520703,0.07230173,222.76,222.42,0.82526361]